lending/lending_fUSD_20240824
["ID","MTS","AMOUNT","RATE_DAILY","PERIOD"]
[335827375,1724518246520,-500.0,0.00010999,2]
[335827376,1724518246529,-550.46,0.00010999,2]
[335827377,1724518246538,-534.73,0.00010999,2]
[335827378,1724518246547,-500.0,0.00010999,2]
[335827379,1724518246558,-500.0,0.00010999,2]
[335827380,1724518246567,-534.73,0.00010999,2]
[335827381,1724518246577,-550.46,0.00010999,2]
[335827382,1724518246586,-500.0,0.00010999,2]
[335827383,1724518246595,-500.0,0.00010999,2]
[335827384,1724518246604,-534.73,0.00010999,2]
[335827385,1724518246613,-550.46,0.00010999,2]
[335827386,1724518246622,-500.0,0.00010999,2]
[335827387,1724518246632,-534.73,0.00010999,2]
[335827388,1724518246642,-550.46,0.00010999,2]
[335827389,1724518246651,-500.0,0.00010999,2]
[335827390,1724518246660,-500.0,0.00010999,2]
[335827391,1724518246669,-534.73,0.00010999,2]
[335827392,1724518246678,-550.46,0.00010999,2]
[335827393,1724518246688,-495.18,0.00010999,2]
[335827394,1724518246697,-500.0,0.00010999,2]
[335827395,1724518246710,-534.73,0.00010999,2]
[335827396,1724518246719,-550.46,0.00010999,2]
[335827397,1724518246728,-2426.67,0.00010999,2]
[335827398,1724518246737,-534.73,0.00010999,2]
[335827399,1724518246747,-550.46,0.00010999,2]
[335827400,1724518246756,-2426.67,0.00010999,2]
[335827401,1724518246765,-534.73,0.00010999,2]
[335827402,1724518246774,-550.46,0.00010999,2]
[335827403,1724518246785,-2426.67,0.00010999,2]
[335827404,1724518246794,-534.73,0.00010999,2]
[335827405,1724518246804,-550.46,0.00010999,2]
[335827406,1724518246813,-2426.67,0.00010999,2]
[335827407,1724518246822,-534.73,0.00010999,2]
[335827408,1724518246831,-550.46,0.00010999,2]
[335827409,1724518246841,-2426.67,0.00010999,2]
[335827410,1724518246852,-534.83,0.00010999,2]
[335827411,1724518246861,-550.46,0.00010999,2]
[335827412,1724518246870,-2426.67,0.00010999,2]
[335827413,1724518246879,-2426.67,0.00010999,2]
[335827414,1724518246888,-500.0,0.00010999,2]
[335827415,1724518246897,-550.46,0.00010999,2]
[335827416,1724518246906,-500.0,0.00010999,2]
[335827417,1724518246916,-2426.67,0.00010999,2]
[335827418,1724518246926,-550.46,0.00010999,2]
[335827419,1724518246936,-2426.67,0.00010999,2]
[335827420,1724518246949,-550.46,0.00010999,2]
[335827421,1724518246960,-500.0,0.00010999,2]
[335827422,1724518246971,-550.46,0.00010999,2]
[335827423,1724518246981,-544.11,0.00010999,2]
[335827424,1724518246992,-2426.67,0.00010999,2]
[335827425,1724518247002,-550.46,0.00010999,2]
[335827426,1724518247011,-2426.67,0.00010999,2]
[335827427,1724518247021,-550.46,0.00010999,2]
[335827428,1724518247032,-2426.67,0.00010999,2]
[335827429,1724518247042,-550.46,0.00010999,2]
[335827430,1724518247052,-2426.67,0.00010999,2]
[335827431,1724518247061,-550.54,0.00010999,2]
[335827432,1724518247070,-2426.67,0.00010999,2]
[335827433,1724518247079,-2426.67,0.00010999,2]
[335827434,1724518247089,-708.9,0.00010999,2]
[335827435,1724518247098,-2426.67,0.00010999,2]
[335827436,1724518247107,-708.9,0.00010999,2]
[335827437,1724518247116,-2426.67,0.00010999,2]
[335827438,1724518247125,-708.9,0.00010999,2]
[335827439,1724518247134,-838.58,0.00010999,2]
[335827440,1724518247144,-2426.67,0.00010999,2]
[335827441,1724518247153,-2426.67,0.00010999,2]
[335827442,1724518247163,-838.58,0.00010999,2]
[335827443,1724518247172,-708.9,0.00010999,2]
[335827444,1724518247181,-2426.67,0.00010999,2]
[335827445,1724518247191,-708.9,0.00010999,2]
[335827446,1724518247201,-838.58,0.00010999,2]
[335827447,1724518247211,-2426.67,0.00010999,2]
[335827448,1724518247221,-708.9,0.00010999,2]
[335827449,1724518247231,-838.58,0.00010999,2]
[335827450,1724518247240,-2426.73045853,0.00010999,2]
[335827451,1724518247249,-708.9,0.00010999,2]
[335827452,1724518247258,-838.58,0.00010999,2]
[335827453,1724518247267,-708.9,0.00010999,2]
[335827454,1724518247276,-86.98730116,0.00010999,2]
[335827455,1724518247295,-751.59269884,0.00010999,2]
[335827456,1724518247304,-708.9,0.00010999,2]
[335827457,1724518247313,-439.50730116,0.00010999,2]
[335827458,1724518247325,-399.07269884,0.00010999,2]
[335827459,1724518247334,-574.17640743,0.00010999,2]
[335827460,1724518247349,-201.15359257,0.00010999,2]
[335827461,1724518247359,-537.64640743,0.00010999,2]
[335827462,1724518247374,-171.25359257,0.00010999,2]
[335827463,1724518247383,-838.58,0.00010999,2]
[335827464,1724518247392,-775.33,0.00010999,2]
[335827465,1724518247402,-708.9,0.00010999,2]
[335827466,1724518247413,-838.58,0.00010999,2]
[335827467,1724518247422,-775.33,0.00010999,2]
[335827468,1724518247432,-708.9,0.00010999,2]
[335827469,1724518247441,-838.58,0.00010999,2]
[335827470,1724518247451,-615.94640743,0.00010999,2]
[335827471,1724518247463,-92.95359257,0.00010999,2]
[335827472,1724518247473,-551.33459209,0.00010999,2]
[335827473,1724518247484,-223.99540791,0.00010999,2]
[335827474,1724518247493,-444.31302355,0.00010999,2]
[335827475,1724518247507,-394.26697645,0.00010999,2]
[335827476,1724518247517,-465.44895984,0.00010999,2]
[335827477,1724518247529,-243.45104016,0.00010999,2]
[335827478,1724518247539,-775.33,0.00010999,2]
[335827479,1724518247548,-838.58,0.00010999,2]
[335827480,1724518247559,-708.9,0.00010999,2]
[335827481,1724518247569,-308.05802718,0.00010999,2]
[335827490,1724518290782,150.0,0.0002487,120]
[335827505,1724518351487,150.0,0.00025746,120]
[335827508,1724518470775,150.0,0.00026772,120]
[335827509,1724518482214,215.36,0.00010013,2]
[335827511,1724518512974,4199.38,0.00010002,2]
[335827512,1724518530898,150.0,0.00023839,120]
[335827513,1724518548447,378.05,8.219e-05,2]
[335827514,1724518553646,5228.52545625,9.955e-05,2]
[335827515,1724518650751,150.0,0.00025411,120]
[335827516,1724518711284,150.0,0.00025968,120]
[335827517,1724518770752,150.0,0.00026568,120]
[335827518,1724518798091,-1000.0,0.00010039,2]
[335827519,1724518798112,-195.26,0.00010055,2]
[335827520,1724518798138,-378.05,0.00010477,2]
[335827521,1724518798159,-3426.69,0.00010852,2]
[335827531,1724518890880,150.0,0.00026323,120]
[335827532,1724518950760,150.0,0.00026708,120]
[335827533,1724518964069,195.26,9.991e-05,2]
[335827534,1724518967748,501.81,0.00027,120]
[335827535,1724519006649,264.76,9.974e-05,2]
[335827537,1724519052443,354.15,8.219e-05,2]
[335827538,1724519071167,150.0,0.00026262,120]
[335827540,1724519131568,150.0,0.00025411,120]
[335827541,1724519191294,150.0,0.00025697,120]
[335827635,1724519368693,155.0,0.00010009,2]
[335827636,1724519371856,150.0,0.00025264,120]
[335827649,1724519431660,-200.0,0.00010016,2]
[335827650,1724519431669,-162.95196994,0.00010026,2]
[335827651,1724519431679,-354.15,0.00010474,2]
[335827652,1724519431688,-314.24701514,0.00010505,2]
[335827653,1724519431698,-300.0,0.00010565,2]
[335827654,1724519431708,-300.0,0.00010565,2]
[335827655,1724519431717,-251.81939304,0.00010566,2]
[335827656,1724519431727,-5407.7536904,0.00010566,2]
[335827657,1724519431736,-295.82107484,0.00010861,2]
[335827658,1724519431746,-155.19385311,0.00010888,2]
[335827659,1724519431755,-402.73861596,0.00010888,2]
[335827660,1724519431764,-1947.64002,0.0001089,2]
[335827661,1724519431774,-159.25719,0.0001089,2]
[335827662,1724519431783,-419.31016917,0.0001089,2]
[335827663,1724519431793,-650.89584616,0.0001089,2]
[335827664,1724519431802,-150.0,0.00010898,2]
[335827665,1724519431812,-1077.0,0.00010899,2]
[335827666,1724519431821,-7500.0,0.00010899,2]
[335827667,1724519431831,-45702.18107151,0.00010899,2]
[335827668,1724519431840,-161.15103085,0.00010899,2]
[335827669,1724519431849,-161.15103081,0.00010899,2]
[335827670,1724519431859,-161.15103081,0.00010899,2]
[335827671,1724519431868,-161.15103081,0.00010899,2]
[335827672,1724519431878,-2661.1093,0.00010899,2]
[335827673,1724519431887,-161.15103081,0.000109,2]
[335827674,1724519431897,-161.15103081,0.000109,2]
[335827675,1724519431907,-161.15103081,0.000109,2]
[335827676,1724519431916,-161.15103081,0.000109,2]
[335827677,1724519431925,-1735.18328058,0.000109,2]
[335827678,1724519431935,-745.85,0.000109,2]
[335827679,1724519431944,-150.0,0.000109,2]
[335827680,1724519431954,-872.3,0.000109,2]
[335827682,1724519431964,-150.0,0.000109,2]
[335827684,1724519431974,-161.15103081,0.000109,2]
[335827686,1724519431983,-790.9,0.000109,2]
[335827687,1724519431992,-421.55,0.000109,2]
[335827688,1724519432002,-170.04441282,0.000109,2]
[335827689,1724519432011,-388.84316885,0.000109,2]
[335827690,1724519432020,-1000.0,0.000109,2]
[335827691,1724519432029,-5848.0,0.000109,2]
[335827693,1724519432039,-676.84042606,0.000109,2]
[335827694,1724519432050,-784.98522457,0.000109,2]
[335827695,1724519432061,-863.503638,0.000109,2]
[335827696,1724519432074,-1403.67071137,0.000109,2]
[335827697,1724519432085,-289.0,0.000109,2]
[335827698,1724519432094,-242.56155172,0.000109,2]
[335827699,1724519432105,-1431.43844828,0.000109,2]
[335827700,1724519432115,-1206.0,0.000109,2]
[335827701,1724519432124,-298.88080064,0.00010949,2]
[335827702,1724519432134,-157.8,0.00010959,2]
[335827703,1724519432143,-1919.06,0.00010959,2]
[335827704,1724519432154,-160.86,0.00010959,2]
[335827705,1724519432164,-250.0,0.00010959,2]
[335827706,1724519432174,-39.3167597,0.00010973,2]
[335827707,1724519432186,-120.6506643,0.00010973,2]
[335827708,1724519432195,-150.78,0.0001099,2]
[335827709,1724519432204,-48.42971769,0.00010998,2]
[335827710,1724519432215,-397.08384421,0.00010998,2]
[335827711,1724519432227,-54.4864381,0.00010998,2]
[335827712,1724519432236,-500.0,0.00010998,2]
[335827713,1724519432245,-500.0,0.00010998,2]
[335827714,1724519432254,-370.61144982,0.00010998,2]
[335827715,1724519432264,-500.0,0.00010998,2]
[335827716,1724519432272,-500.0,0.00010998,2]
[335827717,1724519432282,-500.0,0.00010998,2]
[335827718,1724519432291,-500.0,0.00010998,2]
[335827719,1724519432300,-249.183291,0.00010998,2]
[335827720,1724519432311,-250.816709,0.00010998,2]
[335827721,1724519432320,-500.0,0.00010998,2]
[335827722,1724519432329,-71.683291,0.00010998,2]
[335827723,1724519432340,-152.73027306,0.00010998,2]
[335827724,1724519432349,-500.0,0.00010998,2]
[335827725,1724519432359,-500.0,0.00010998,2]
[335827726,1724519432368,-500.0,0.00010998,2]
[335827727,1724519432377,-500.0,0.00010998,2]
[335827728,1724519432386,-477.26972694,0.00010998,2]
[335827729,1724519432397,-22.73027306,0.00010998,2]
[335827730,1724519432407,-236.03824303,0.00010998,2]
[335827731,1724519432419,-263.96175697,0.00010998,2]
[335827732,1724519432428,-500.0,0.00010998,2]
[335827733,1724519432437,-500.0,0.00010998,2]
[335827734,1724519432446,-500.0,0.00010998,2]
[335827735,1724519432456,-500.0,0.00010998,2]
[335827736,1724519432466,-500.0,0.00010998,2]
[335827737,1724519432475,-500.0,0.00010998,2]
[335827738,1724519432484,-500.0,0.00010998,2]
[335827739,1724519432494,-500.0,0.00010998,2]
[335827740,1724519432503,-500.0,0.00010998,2]
[335827741,1724519432512,-185.0336535,0.00010998,2]
[335827742,1724519432521,-500.0,0.00010998,2]
[335827743,1724519432530,-500.0,0.00010998,2]
[335827744,1724519432539,-500.0,0.00010998,2]
[335827745,1724519432549,-194.32631146,0.00010998,2]
[335827746,1724519432558,-500.0,0.00010998,2]
[335827747,1724519432567,-504.05,0.00010998,2]
[335827748,1724519432576,-347.19836719,0.00010998,2]
[335827749,1724519432585,-500.0,0.00010998,2]
[335827750,1724519432595,-509.49,0.00010998,2]
[335827751,1724519432604,-500.0,0.00010998,2]
[335827752,1724519432614,-500.0,0.00010998,2]
[335827753,1724519432623,-500.0,0.00010998,2]
[335827754,1724519432632,-741.2,0.00010998,2]
[335827755,1724519432642,-500.0,0.00010998,2]
[335827756,1724519432651,-711.63,0.00010998,2]
[335827757,1724519432660,-500.0,0.00010998,2]
[335827758,1724519432669,-702.02,0.00010998,2]
[335827759,1724519432678,-537.57,0.00010998,2]
[335827760,1724519432687,-114.66067088,0.00010998,2]
[335827761,1724519432698,-448.95932912,0.00010998,2]
[335827762,1724519432707,-500.0,0.00010998,2]
[335827763,1724519432716,-500.0,0.00010998,2]
[335827764,1724519432726,-129.59823903,0.00010998,2]
[335827767,1724519437643,-251.81939304,0.00010505,2]
[335827768,1724519437654,-379.01176097,0.00010998,2]
[335827769,1724519437663,-500.0,0.00010998,2]
[335827770,1724519437672,-475.8998675,0.00010998,2]
[335827771,1724519437859,-278.0301325,0.00010998,2]
[335827772,1724519437869,-500.0,0.00010998,2]
[335827773,1724519437879,-151.0,0.00010999,2]
[335827774,1724519437888,-151.0,0.00010999,2]
[335827775,1724519437898,-1483.59482085,0.00010999,2]
[335827776,1724519437908,-500.0,0.00010999,2]
[335827777,1724519437917,-171.43716281,0.00010999,2]
[335827778,1724519437927,-362.43411497,0.00010999,2]
[335827779,1724519437937,-393.90813948,0.00010999,2]
[335827780,1724519437949,-106.09186052,0.00010999,2]
[335827781,1724519437959,-500.0,0.00010999,2]
[335827782,1724519437968,-500.0,0.00010999,2]
[335827784,1724519437978,-345.24621512,0.00010999,2]
[335827787,1724519437990,-154.75378488,0.00010999,2]
[335827789,1724519438000,-500.0,0.00010999,2]
[335827791,1724519438010,-500.0,0.00010999,2]
[335827793,1724519438020,-500.0,0.00010999,2]
[335827795,1724519438031,-500.0,0.00010999,2]
[335827796,1724519438040,-500.0,0.00010999,2]
[335827799,1724519438050,-500.0,0.00010999,2]
[335827800,1724519438059,-151.57420913,0.00010999,2]
[335827858,1724519439835,-348.42579087,0.00010999,2]
[335827859,1724519439846,-177.98420913,0.00010999,2]
[335827860,1724519439858,-322.01579087,0.00010999,2]
[335827861,1724519439868,-500.0,0.00010999,2]
[335827862,1724519439878,-500.0,0.00010999,2]
[335827863,1724519439887,-377.9934876,0.00010999,2]
[335827864,1724519439899,-500.0,0.00010999,2]
[335827865,1724519439910,-500.0,0.00010999,2]
[335827866,1724519439920,-500.0,0.00010999,2]
[335827867,1724519439931,-290.37563972,0.00010999,2]
[335827868,1724519439944,-89.11608298,0.00010999,2]
[335827869,1724519439955,-504.05,0.00010999,2]
[335827870,1724519439967,-504.05,0.00010999,2]
[335827871,1724519439979,-504.05,0.00010999,2]
[335827872,1724519439992,-504.05,0.00010999,2]
[335827873,1724519440003,-504.05,0.00010999,2]
[335827874,1724519440016,-504.05,0.00010999,2]
[335827875,1724519440028,-22.88639773,0.00010999,2]
[335827876,1724519440043,-481.16360227,0.00010999,2]
[335827877,1724519440055,-72.20265737,0.00010999,2]
[335827878,1724519440069,-306.09729367,0.00010999,2]
[335827879,1724519440091,-125.75004896,0.00010999,2]
[335827880,1724519440104,-504.05,0.00010999,2]
[335827882,1724519440114,-504.05,0.00010999,2]
[335827884,1724519440125,-504.05,0.00010999,2]
[335827886,1724519440136,-504.05,0.00010999,2]
[335827888,1724519440147,-504.05,0.00010999,2]
[335827890,1724519440160,-504.05,0.00010999,2]
[335827892,1724519440171,-504.05,0.00010999,2]
[335827894,1724519440184,-56.64620954,0.00010999,2]
[335827897,1724519440201,-447.40379046,0.00010999,2]
[335827899,1724519440211,-504.05,0.00010999,2]
[335827901,1724519440222,-33.46253768,0.00010999,2]
[335827903,1724519440233,-470.58746232,0.00010999,2]
[335827906,1724519440243,-283.2490107,0.00010999,2]
[335828185,1724519442898,-363.42500048,0.000109,2]
[335828187,1724519442914,-713.57499952,0.000109,2]
[335828189,1724519442925,-220.8009893,0.00010999,2]
[335828191,1724519442936,-73.72287218,0.00010999,2]
[335828488,1724519550736,150.0,0.00025831,120]
[335828490,1724519562022,1050.0,0.0001,2]
[335828494,1724519670871,150.0,0.00024396,120]
[335828495,1724519691369,345.14,8.219e-05,2]
[335828496,1724519730747,150.0,0.00025888,120]
[335828498,1724519799757,-840.0,0.0001006,2]
[335828499,1724519801944,15302.16196856,0.0001,2]
[335828506,1724519971324,150.0,0.00023969,120]
[335828508,1724520090755,150.0,0.00024975,120]
[335828510,1724520151004,150.0,0.0002544,120]
[335828511,1724520220841,339.77,8.219e-05,2]
[335828513,1724520290369,250.15156537,9.962e-05,2]
[335828522,1724520390771,150.0,0.00025926,120]
[335828539,1724520482782,2274.90000002,0.00027,120]
[335828549,1724520510729,150.0,0.00026741,120]
[335828570,1724520564051,-328.0,0.00010032,2]
[335828571,1724520564076,-215.36,0.00010054,2]
[335828585,1724520630709,150.0,0.00026882,120]
[335828605,1724520631798,-181.4,0.0001035,2]
[335828606,1724520631807,-339.77,0.00010478,2]
[335828607,1724520631816,-1210.11504997,0.00010505,2]
[335828608,1724520631827,-625.93761542,0.00010505,2]
[335828609,1724520631864,-984.40976051,0.00010505,2]
[335828610,1724520631875,-598.06133583,0.00010505,2]
[335828611,1724520631887,-101.93866417,0.00010861,2]
[335828612,1724520631898,-449.63139785,0.00010861,2]
[335828613,1724520631907,-150.26860215,0.00010862,2]
[335828614,1724520631918,-163.97841299,0.00010862,2]
[335828615,1724520631927,-155.0,0.00010888,2]
[335828616,1724520631936,-175.35822342,0.0001089,2]
[335828617,1724520631947,-495.44895658,0.0001089,2]
[335828618,1724520631957,-132.99721692,0.0001089,2]
[335828619,1724520631990,-498.67070624,0.0001089,2]
[335828620,1724520631999,-502.40838304,0.00010899,2]
[335828621,1724520632054,-329.14260328,0.00010899,2]
[335828644,1724520637773,-168.44901368,0.00010899,2]
[335828645,1724520637783,-183.97398846,0.00010899,2]
[335828646,1724520637793,-191.59046681,0.00010899,2]
[335828647,1724520637805,-164.94529843,0.00010899,2]
[335828648,1724520637814,-281.12166788,0.00010899,2]
[335828649,1724520637824,-150.0,0.00010899,2]
[335828650,1724520637833,-3925.65498191,0.000109,2]
[335828651,1724520637843,-2417.58121075,0.000109,2]
[335828652,1724520637853,-258.97974298,0.000109,2]
[335828653,1724520637865,-272.64025702,0.000109,2]
[335828654,1724520637874,-421.55,0.000109,2]
[335828655,1724520637883,-790.9,0.000109,2]
[335828656,1724520637894,-227.99778592,0.000109,2]
[335828657,1724520637910,-282.04696975,0.000109,2]
[335828658,1724520637921,-566.76354058,0.000109,2]
[335828659,1724520637933,-285.49172499,0.000109,2]
[335828660,1724520637950,-218.51997876,0.000109,2]
[335828661,1724520637960,-421.55,0.000109,2]
[335828662,1724520637969,-531.62,0.000109,2]
[335828663,1724520637978,-421.55,0.000109,2]
[335828664,1724520637986,-1126.49,0.000109,2]
[335828665,1724520637996,-531.62,0.000109,2]
[335828666,1724520638005,-790.9,0.000109,2]
[335828667,1724520638015,-421.55,0.000109,2]
[335828668,1724520638024,-150.0,0.000109,2]
[335828669,1724520638034,-790.9,0.000109,2]
[335828670,1724520638043,-421.55,0.000109,2]
[335828671,1724520638053,-531.62,0.000109,2]
[335828672,1724520638063,-55.13504947,0.00010949,2]
[335828673,1724520638075,-600.0,0.00010949,2]
[335828674,1724520638087,-27.09495053,0.00010949,2]
[335828675,1724520638096,-152.16,0.00010959,2]
[335828676,1724520638106,-250.0,0.00010959,2]
[335828677,1724520638116,-1132.11550129,0.00010989,2]
[335828678,1724520638125,-192.0,0.0001099,2]
[335828679,1724520638135,-3578.0773001,0.00010992,2]
[335828680,1724520638146,-2457.21723831,0.00010996,2]
[335828681,1724520638156,-15566.31106457,0.00010997,2]
[335828682,1724520638167,-805.98015679,0.00010997,2]
[335828683,1724520638179,-655.8882961,0.00010997,2]
[335828685,1724520638191,-713.52089121,0.00010997,2]
[335828687,1724520638202,-1916.03749781,0.00010997,2]
[335828689,1724520638212,-500.0,0.00010998,2]
[335828691,1724520638221,-500.0,0.00010998,2]
[335828693,1724520638230,-500.0,0.00010998,2]
[335828695,1724520638241,-277.24900695,0.00010998,2]
[335828697,1724520638252,-500.0,0.00010998,2]
[335828699,1724520638263,-500.0,0.00010998,2]
[335828701,1724520638273,-500.0,0.00010998,2]
[335828703,1724520638283,-500.0,0.00010998,2]
[335828705,1724520638293,-4667.4163791,0.00010998,2]
[335828707,1724520638302,-500.0,0.00010998,2]
[335828709,1724520638312,-500.0,0.00010998,2]
[335828711,1724520638321,-500.0,0.00010998,2]
[335828713,1724520638331,-500.0,0.00010998,2]
[335828715,1724520638341,-500.0,0.00010998,2]
[335828717,1724520638350,-500.0,0.00010998,2]
[335828719,1724520638359,-500.0,0.00010998,2]
[335828721,1724520638369,-500.0,0.00010998,2]
[335828723,1724520638378,-500.0,0.00010998,2]
[335828725,1724520638388,-500.0,0.00010998,2]
[335828726,1724520638397,-500.0,0.00010998,2]
[335828728,1724520638407,-500.0,0.00010998,2]
[335828730,1724520638417,-500.0,0.00010998,2]
[335828732,1724520638427,-500.0,0.00010998,2]
[335828734,1724520638436,-500.0,0.00010998,2]
[335828736,1724520638445,-500.0,0.00010998,2]
[335828738,1724520638455,-500.0,0.00010998,2]
[335828740,1724520638468,-500.0,0.00010998,2]
[335828742,1724520638477,-500.0,0.00010998,2]
[335828745,1724520638488,-500.0,0.00010998,2]
[335828747,1724520638497,-500.0,0.00010998,2]
[335828749,1724520638507,-500.0,0.00010998,2]
[335828750,1724520638516,-500.0,0.00010998,2]
[335828753,1724520638526,-500.0,0.00010998,2]
[335828754,1724520638535,-4338.4509963,0.00010998,2]
[335828757,1724520638545,-500.0,0.00010998,2]
[335828759,1724520638554,-500.0,0.00010998,2]
[335828761,1724520638564,-500.0,0.00010998,2]
[335828763,1724520638573,-500.0,0.00010998,2]
[335828765,1724520638583,-500.0,0.00010998,2]
[335828767,1724520638592,-500.0,0.00010998,2]
[335828768,1724520638601,-299.01504484,0.00010998,2]
[335828771,1724520638613,-200.98495516,0.00010998,2]
[335828773,1724520638623,-263.50719891,0.00010998,2]
[335828775,1724520638634,-236.49280109,0.00010998,2]
[335828777,1724520638644,-500.0,0.00010998,2]
[335828779,1724520638654,-500.0,0.00010998,2]
[335828781,1724520638663,-500.0,0.00010998,2]
[335828783,1724520638672,-500.0,0.00010998,2]
[335828785,1724520638681,-622.64,0.00010998,2]
[335828787,1724520638690,-622.64,0.00010998,2]
[335828789,1724520638699,-622.64,0.00010998,2]
[335828791,1724520638708,-622.64,0.00010998,2]
[335828793,1724520638717,-874.96,0.00010998,2]
[335828795,1724520638726,-522.62,0.00010998,2]
[335828797,1724520638735,-522.62,0.00010998,2]
[335828799,1724520638744,-522.62,0.00010998,2]
[335828801,1724520638753,-522.62,0.00010998,2]
[335828803,1724520638762,-648.32,0.00010998,2]
[335828805,1724520638771,-413.85,0.00010998,2]
[335828807,1724520638780,-500.0,0.00010998,2]
[335828809,1724520638789,-560.23,0.00010998,2]
[335828811,1724520638798,-500.0,0.00010998,2]
[335828813,1724520638807,-560.23,0.00010998,2]
[335828815,1724520638817,-500.0,0.00010998,2]
[335828817,1724520638826,-560.23,0.00010998,2]
[335828819,1724520638834,-500.0,0.00010998,2]
[335828821,1724520638844,-964.63,0.00010998,2]
[335828823,1724520638854,-964.63,0.00010998,2]
[335828825,1724520638863,-964.63,0.00010998,2]
[335828827,1724520638872,-946.47,0.00010998,2]
[335828829,1724520638881,-946.47,0.00010998,2]
[335828831,1724520638892,-946.47,0.00010998,2]
[335828833,1724520638900,-946.47,0.00010998,2]
[335828834,1724520638909,-908.38,0.00010998,2]
[335828836,1724520638919,-908.38,0.00010998,2]
[335828837,1724520638928,-908.38,0.00010998,2]
[335828838,1724520638937,-635.18,0.00010998,2]
[335828839,1724520638946,-635.18,0.00010998,2]
[335828840,1724520638955,-635.18,0.00010998,2]
[335828841,1724520638964,-635.18,0.00010998,2]
[335828842,1724520638973,-500.0,0.00010998,2]
[335828843,1724520638982,-500.0,0.00010998,2]
[335828844,1724520638991,-672.77,0.00010998,2]
[335828845,1724520639000,-500.0,0.00010998,2]
[335828846,1724520639011,-500.0,0.00010998,2]
[335828847,1724520639020,-500.0,0.00010998,2]
[335828848,1724520639029,-500.0,0.00010998,2]
[335828849,1724520639038,-711.03,0.00010998,2]
[335828850,1724520639048,-268.71,0.00010998,2]
[335828851,1724520639057,-711.03,0.00010998,2]
[335828852,1724520639067,-711.03,0.00010998,2]
[335828853,1724520639077,-711.03,0.00010998,2]
[335828854,1724520639087,-616.54,0.00010998,2]
[335828855,1724520639096,-500.0,0.00010998,2]
[335828856,1724520639106,-936.82,0.00010998,2]
[335828857,1724520639115,-500.0,0.00010998,2]
[335828858,1724520639125,-936.82,0.00010998,2]
[335828859,1724520639135,-500.0,0.00010998,2]
[335828860,1724520639145,-936.82,0.00010998,2]
[335828861,1724520639154,-936.82,0.00010998,2]
[335828862,1724520639164,-500.0,0.00010998,2]
[335828863,1724520639173,-500.0,0.00010998,2]
[335828864,1724520639185,-500.0,0.00010998,2]
[335828865,1724520639194,-248.16,0.00010998,2]
[335828866,1724520639203,-809.8,0.00010998,2]
[335828867,1724520639213,-809.8,0.00010998,2]
[335828868,1724520639223,-809.8,0.00010998,2]
[335828869,1724520639233,-607.69,0.00010998,2]
[335828870,1724520639242,-607.69,0.00010998,2]
[335828871,1724520639252,-607.69,0.00010998,2]
[335828872,1724520639261,-607.69,0.00010998,2]
[335828873,1724520639271,-809.18,0.00010998,2]
[335828874,1724520639280,-475.26679064,0.00010998,2]
[335828879,1724520640103,-298.88080064,0.00010949,2]